fUST/lending_fUST_20260101
["ID","MTS","AMOUNT","RATE_DAILY","PERIOD"]
[400278160,1767252391443,-250000.0,0.00032876,9]
[400278161,1767252391466,-318.19,0.00032877,10]
[400278162,1767252391488,-265.16,0.00032877,10]
[400278163,1767252391511,-500.0,0.00032877,5]
[400278164,1767252391535,-150.0,0.00032877,5]
[400278165,1767252391557,-181.86492436,0.000329,120]
[400278166,1767252391581,-163.54107835,0.000329,120]
[400278167,1767252391605,-242.00842579,0.000329,120]
[400278168,1767252391628,-161.57990308,0.000329,120]
[400278169,1767252391651,-193.56561343,0.000329,120]
[400278170,1767252391675,-1447.43735711,0.000329,2]
[400278171,1767252391700,-978.06518474,0.000329,120]
[400278172,1767252391725,-456.59502621,0.00032965,7]
[400278173,1767252391748,-500.0,0.00032965,7]
[400278174,1767252391775,-500.0,0.00032965,7]
[400278175,1767252391799,-562.73472952,0.00032965,7]
[400278176,1767252391826,-500.0,0.00032965,7]
[400278177,1767252391849,-500.0,0.00032965,7]
[400278178,1767252391877,-500.0,0.00032965,7]
[400278179,1767252391901,-500.0,0.00032965,7]
[400278180,1767252391929,-500.0,0.00032965,7]
[400278181,1767252391952,-500.0,0.00032965,7]
[400278182,1767252391976,-365.47813113,0.00032965,7]
[400278183,1767252392001,-500.0,0.00032965,7]
[400278184,1767252392025,-500.0,0.00032965,7]
[400278185,1767252392053,-500.0,0.00032965,7]
[400278186,1767252392078,-500.0,0.00032965,7]
[400278187,1767252392108,-500.0,0.00032965,7]
[400278188,1767252392135,-556.36346464,0.00032965,7]
[400278189,1767252392159,-500.0,0.00032965,7]
[400278190,1767252392185,-500.0,0.00032965,7]
[400278191,1767252392209,-500.0,0.00032965,7]
[400278192,1767252392236,-500.0,0.00032965,7]
[400278193,1767252392260,-500.0,0.00032965,7]
[400278194,1767252392292,-500.0,0.00032965,7]
[400278195,1767252392317,-500.0,0.00032965,7]
[400278196,1767252392349,-500.0,0.00032965,7]
[400278197,1767252392377,-500.0,0.00032965,7]
[400278198,1767252392399,-500.0,0.00032965,7]
[400278199,1767252392426,-500.0,0.00032965,7]
[400278200,1767252392452,-500.0,0.00032965,7]
[400278201,1767252392478,-500.0,0.00032965,7]
[400278202,1767252392504,-500.0,0.00032965,7]
[400278203,1767252392530,-500.0,0.00032965,7]
[400278204,1767252392556,-500.0,0.00032965,7]
[400278205,1767252392582,-500.0,0.00032965,7]
[400278206,1767252392610,-647.75520115,0.00032965,7]
[400278207,1767252392639,-500.0,0.00032965,7]
[400278208,1767252392667,-500.0,0.00032965,7]
[400278209,1767252392693,-380.1614281,0.00032965,7]
[400278210,1767252392720,-500.0,0.00032965,7]
[400278211,1767252392746,-550.0,0.00032965,7]
[400278212,1767252392769,-3822063.44405267,0.00032966,30]
[400278213,1767252433112,-900.43833472,9.957e-05,2]
[400278215,1767252439628,10000.0,0.00028767,120]
[400278223,1767252574112,-2718.3088208,9.957e-05,2]
[400278224,1767252574438,581.30797998,0.0001,10]
[400278260,1767252632117,-546.28186695,9.857e-05,2]
[400278295,1767252638219,-4453.71813305,9.857e-05,2]
[400278296,1767252638229,-558.0,9.857e-05,2]
[400278297,1767252638239,-996381.25284448,9.957e-05,2]
[400278298,1767252638248,-215.6905499,9.978e-05,2]
[400278299,1767252638258,-150.0,9.978e-05,2]
[400278300,1767252638268,-150.22,0.0001,2]
[400278301,1767252638277,-11364.33389552,0.0001,2]
[400278302,1767252638287,-150.22,0.000102,2]
[400278303,1767252638297,-150.22,0.000104,2]
[400278304,1767252638307,-150.22,0.000106,2]
[400278305,1767252638317,-150.22,0.000108,2]
[400278306,1767252638336,-177.0,0.00011978,2]
[400278307,1767252638351,-491.25996272,0.00013273,2]
[400278308,1767252638360,-2943.2889994,0.00013699,2]
[400278309,1767252638370,-10354.36566361,0.00013699,2]
[400278310,1767252638380,-204.0,0.00013978,2]
[400278311,1767252638389,-531.07693925,0.00015,3]
[400278312,1767252638399,-231.0,0.00015978,2]
[400278313,1767252638409,-111312.50125264,0.00017,2]
[400278314,1767252638419,-2133.84706656,0.000176,2]
[400278315,1767252638428,-1041.66666667,0.00017897,2]
[400278316,1767252638438,-258.0,0.00017978,2]
[400278317,1767252638447,-159.94,0.00018,2]
[400278318,1767252638461,-161574.54161847,0.00018,2]
[400278319,1767252638471,-32487.58211697,0.00019,2]
[400278320,1767252638480,-17936.65088939,0.00019,2]
[400278321,1767252638489,-1201.191,0.00019,2]
[400278322,1767252638499,-285.0,0.00019978,2]
[400278323,1767252638509,-4086.50321384,0.0002,2]
[400278324,1767252638522,-160.0,0.0002,2]
[400278325,1767252638532,-601.57710056,0.0002,2]
[400278326,1767252638541,-71611.0,0.0002,2]
[400278327,1767252638551,-159.78376213,0.0002,2]
[400278328,1767252638565,-2323.1,0.0002,2]
[400278329,1767252638574,-421.09067682,0.0002013,2]
[400278330,1767252638583,-1387.29851785,0.0002061,2]
[400278331,1767252638592,-256.05139749,0.000209,2]
[400278332,1767252638602,-276.92757595,0.00021,2]
[400278333,1767252638611,-1725.78039166,0.00021,2]
[400278334,1767252638621,-1038.36333157,0.000215,2]
[400278335,1767252638630,-12840.41586562,0.000215,2]
[400278336,1767252638639,-2000.0,0.00021836,7]
[400278337,1767252638649,-312.0,0.00021978,2]
[400278338,1767252638658,-160.13,0.00022,2]
[400278339,1767252638668,-154.69,0.00022,7]
[400278340,1767252638677,-1031.90217382,0.000225,2]
[400278341,1767252638688,-250.0,0.00023588,2]
[400278342,1767252638697,-1384.5057019,0.00023922,2]
[400278343,1767252638706,-339.0,0.00023978,2]
[400278344,1767252638716,-178741.93084118,0.00024142,2]
[400278345,1767252638725,-1463.51999437,0.0002455,2]
[400278346,1767252638734,-147634.5545045,0.0002465,2]
[400278347,1767252638744,-513.71639582,0.0002465,2]
[400278348,1767252638756,-16819.15259793,0.00024774,2]
[400278349,1767252638765,-671.01,0.000251,7]
[400278350,1767252638775,-2323.1,0.000253,2]
[400278351,1767252638784,-2000.0,0.00025468,7]
[400278352,1767252638802,-1463.51999436,0.00025941,2]
[400278353,1767252638811,-282.83706268,0.00025978,2]
[400278354,1767252638820,-56121.72687762,0.00026,30]
[400278355,1767252638829,-1463.51999436,0.00027331,2]
[400278356,1767252638839,-12674.23093386,0.0002739,2]
[400278357,1767252638848,-1158.95011257,0.000285,7]
[400278358,1767252638857,-1463.51999436,0.00028722,2]
[400278359,1767252638866,-19245.50339652,0.0002876,2]
[400278360,1767252638876,-28355.36255843,0.0002876,20]
[400278361,1767252638885,-2028.77969745,0.0002876,5]
[400278362,1767252638894,-19131.10080134,0.0002876,2]
[400278363,1767252638904,-5770.77337415,0.0002876,30]
[400278364,1767252638914,-172.36051064,0.000288,7]
[400278365,1767252638923,-889.65355928,0.00029,2]
[400278366,1767252638932,-2406.8053389,0.00029,10]
[400278367,1767252638942,-2000.0,0.00029101,7]
[400278368,1767252638951,-160.0,0.000295,14]
[400278369,1767252638960,-1200.38646137,0.0003,2]
[400278370,1767252638969,-10190.99658578,0.0003,7]
[400278371,1767252638979,-1463.51999436,0.00030113,2]
[400278372,1767252638988,-2323.1,0.000306,2]
[400278373,1767252638998,-305.93499833,0.0003099,2]
[400278374,1767252639007,-181.86492436,0.00031,120]
[400278375,1767252639017,-161.33895052,0.00031,120]
[400278376,1767252639026,-9327.98411535,0.00031,120]
[400278377,1767252639035,-4884.59163205,0.0003112,2]
[400278378,1767252639045,-992.69988636,0.000313,2]
[400278379,1767252639055,-160.0,0.000313,14]
[400278380,1767252639064,-1463.51999436,0.00031503,2]
[400278381,1767252639074,-181.86492436,0.000319,120]
[400278382,1767252639085,-161.33895052,0.000319,120]
[400278383,1767252639095,-32692.16587349,0.000319,2]
[400278384,1767252639105,-26690.05505472,0.00032,120]
[400278385,1767252639114,-1021.0,0.00032,7]
[400278386,1767252639124,-151.0,0.00032005,5]
[400278387,1767252639133,-250000.0,0.00032666,8]
[400278388,1767252639143,-2000.0,0.00032734,7]
[400278389,1767252639153,-2323.1,0.000328,2]
[400278390,1767252639163,-150.0,0.00032877,5]
[400278391,1767252639172,-1463.51999436,0.00032894,2]
[400278392,1767252639182,-161.33895052,0.000329,120]
[400278393,1767252639191,-152.81821803,0.000329,2]
[400278394,1767252639201,-158.480917,0.0003296,31]
[400278395,1767252639211,-158.480917,0.0003296,31]
[400278396,1767252639221,-158.480917,0.0003296,31]
[400278397,1767252639230,-151.0,0.0003296,31]
[400278398,1767252639240,-158.480917,0.0003296,31]
[400278399,1767252639250,-151.0,0.0003296,31]
[400278400,1767252639259,-566.208767,0.0003296,31]
[400278401,1767252639269,-566.208767,0.0003296,31]
[400278402,1767252639278,-151.0,0.0003296,31]
[400278403,1767252639288,-566.208767,0.0003296,31]
[400278404,1767252639298,-267.120865,0.0003296,31]
[400278405,1767252639308,-566.208767,0.0003296,31]
[400278406,1767252639318,-250.0,0.00032965,30]
[400278407,1767252639327,-250.0,0.00032965,30]
[400278408,1767252639336,-250.0,0.00032965,30]
[400278409,1767252639346,-250.0,0.00032965,30]
[400278410,1767252639356,-250.0,0.00032965,30]
[400278411,1767252639365,-250.0,0.00032965,30]
[400278412,1767252639374,-250.0,0.00032965,30]
[400278413,1767252639383,-250.0,0.00032965,30]
[400278414,1767252639392,-250.0,0.00032965,30]
[400278415,1767252639401,-250.0,0.00032965,30]
[400278416,1767252639412,-250.0,0.00032965,30]
[400278417,1767252639422,-250.0,0.00032965,30]
[400278418,1767252639431,-250.0,0.00032965,30]
[400278419,1767252639440,-250.0,0.00032965,30]
[400278420,1767252639450,-250.0,0.00032965,30]
[400278421,1767252639459,-250.0,0.00032965,30]
[400278422,1767252639468,-250.0,0.00032965,30]
[400278423,1767252639477,-250.0,0.00032965,30]
[400278424,1767252639486,-250.0,0.00032965,30]
[400278425,1767252639495,-250.0,0.00032965,30]
[400278426,1767252639506,-250.0,0.00032965,30]
[400278427,1767252639517,-250.0,0.00032965,30]
[400278428,1767252639527,-1598043.36386259,0.00032966,30]
[400278429,1767252639539,-29322.35561732,0.00032966,30]
[400278454,1767252652359,-1022.45,0.000288,2]
[400278455,1767252652368,-160.59560614,0.000288,2]
[400278458,1767252709339,-10000.01,9.857e-05,2]
[400278459,1767252709522,-10000.01,9.857e-05,2]
[400278460,1767252709715,-10000.01,9.857e-05,2]
[400278461,1767252709851,-10000.01,9.857e-05,2]
[400278462,1767252709961,-10000.01,9.857e-05,2]
[400278463,1767252710071,-10000.01,9.857e-05,2]
[400278464,1767252710186,-10000.01,9.857e-05,2]
[400278465,1767252710340,-10000.01,9.857e-05,2]
[400278466,1767252710458,-10000.01,9.857e-05,2]
[400278467,1767252722713,-300.0,9.856e-05,2]
[400278468,1767252722763,-9400.01,9.857e-05,2]
[400278469,1767252722861,-10000.01,9.857e-05,2]
[400278470,1767252723045,-10000.01,9.857e-05,2]
[400278471,1767252723262,-10000.01,9.857e-05,2]
[400278472,1767252723409,-10000.01,9.857e-05,2]
[400278473,1767252723517,-10000.01,9.857e-05,2]
[400278474,1767252723625,-10000.01,9.857e-05,2]
[400278475,1767252723768,-10000.01,9.857e-05,2]
[400278476,1767252723897,-10000.01,9.857e-05,2]
[400278477,1767252839852,5000.0,9.847e-05,2]
[400278478,1767252863602,-300.0,9.856e-05,2]
[400278479,1767252863920,4565.948743,9.847e-05,2]
[400278480,1767252878879,-434.061257,9.857e-05,2]
[400278481,1767252878964,-10000.01,9.857e-05,2]
[400278482,1767252879069,-10000.01,9.857e-05,2]
[400278483,1767252879196,-10000.01,9.857e-05,2]
[400278484,1767252879340,-10000.01,9.857e-05,2]
[400278485,1767252879463,-10000.01,9.857e-05,2]
[400278486,1767252881855,-10000.01,9.857e-05,2]
[400278487,1767252910151,5000.0,9.757e-05,2]
[400278488,1767253071700,-300.0,9.855e-05,2]
[400278489,1767253071723,-150.0,9.855e-05,2]
[400278490,1767253071745,-500.0,9.856e-05,2]
[400278491,1767253071767,-195.72780714,9.856e-05,2]
[400278492,1767253071789,-500.0,9.856e-05,2]
[400278493,1767253071812,-500.0,9.856e-05,2]
[400278494,1767253071834,-500.0,9.856e-05,2]
[400278495,1767253071855,-500.0,9.856e-05,2]
[400278496,1767253071876,-185.95384216,9.856e-05,2]
[400278497,1767253071899,-500.0,9.856e-05,2]
[400278498,1767253071923,-500.0,9.856e-05,2]
[400278499,1767253071945,-500.0,9.856e-05,2]
[400278500,1767253071968,-500.0,9.856e-05,2]
[400278501,1767253071991,-500.0,9.856e-05,2]
[400278502,1767253072014,-500.0,9.856e-05,2]
[400278503,1767253072037,-500.0,9.856e-05,2]
[400278504,1767253072061,-500.0,9.856e-05,2]
[400278505,1767253072084,-500.0,9.856e-05,2]
[400278506,1767253072107,-500.0,9.856e-05,2]
[400278507,1767253072131,-500.0,9.856e-05,2]
[400278508,1767253072154,-500.0,9.856e-05,2]
[400278509,1767253072178,-500.0,9.856e-05,2]
[400278510,1767253072202,-168.3183507,9.856e-05,2]
[400278511,1767253079994,514.75,7.992e-05,2]
[400278512,1767253080254,514.75,7.992e-05,2]
[400278513,1767253081506,-331.6816493,9.856e-05,2]
[400278514,1767253081531,-500.0,9.856e-05,2]
[400278515,1767253081559,-500.0,9.856e-05,2]
[400278516,1767253081583,-500.0,9.856e-05,2]
[400278517,1767253081607,-500.0,9.856e-05,2]
[400278518,1767253081631,-500.0,9.856e-05,2]
[400278519,1767253081655,-500.0,9.856e-05,2]
[400278520,1767253081680,-500.0,9.856e-05,2]
[400278521,1767253081703,-500.0,9.856e-05,2]
[400278522,1767253081726,-500.0,9.856e-05,2]
[400278523,1767253081750,-500.0,9.856e-05,2]
[400278524,1767253081773,-500.0,9.856e-05,2]
[400278525,1767253081796,-500.0,9.856e-05,2]
[400278526,1767253081820,-500.0,9.856e-05,2]
[400278527,1767253081844,-500.0,9.856e-05,2]
[400278528,1767253081867,-500.0,9.856e-05,2]
[400278529,1767253081893,-437.46499466,9.856e-05,2]
[400278530,1767253081916,-500.0,9.856e-05,2]
[400278531,1767253081939,-500.0,9.856e-05,2]
[400278532,1767253081962,-500.0,9.856e-05,2]
[400278533,1767253081985,-230.85335604,9.856e-05,2]
[400278534,1767253115736,-300.0,9.855e-05,2]
[400278535,1767253115764,-269.14664396,9.856e-05,2]
[400278536,1767253115793,-500.0,9.856e-05,2]
[400278537,1767253115821,-500.0,9.856e-05,2]
[400278538,1767253115848,-500.0,9.856e-05,2]
[400278539,1767253115873,-500.0,9.856e-05,2]
[400278540,1767253115900,-500.0,9.856e-05,2]
[400278541,1767253115926,-500.0,9.856e-05,2]
[400278542,1767253115951,-500.0,9.856e-05,2]
[400278543,1767253115978,-477.72999866,9.856e-05,2]
[400278544,1767253116004,-500.0,9.856e-05,2]
[400278545,1767253116033,-500.0,9.856e-05,2]
[400278546,1767253116060,-500.0,9.856e-05,2]
[400278547,1767253116087,-500.0,9.856e-05,2]
[400278548,1767253116112,-500.0,9.856e-05,2]
[400278549,1767253116140,-268.52655872,9.856e-05,2]
[400278550,1767253116167,-500.0,9.856e-05,2]
[400278551,1767253116199,-500.0,9.856e-05,2]
[400278552,1767253116223,-500.0,9.856e-05,2]
[400278553,1767253116247,-500.0,9.856e-05,2]
[400278554,1767253116273,-500.0,9.856e-05,2]
[400278555,1767253116299,-184.59679866,9.856e-05,2]
[400278564,1767253360612,507.3066774,8.942e-05,2]
[400278565,1767253368615,-558.0,9.855e-05,2]
[400278566,1767253368635,-300.0,9.855e-05,2]
[400278567,1767253368654,-7142.0,9.856e-05,2]
[400278568,1767253416137,-300.0,9.855e-05,2]
[400278569,1767253416161,-3212.36566361,9.856e-05,2]
[400278570,1767253416184,-150.0,9.856e-05,2]
[400278571,1767253416208,-315.40320134,9.856e-05,2]
[400278572,1767253416232,-500.0,9.856e-05,2]
[400278573,1767253416256,-500.0,9.856e-05,2]
[400278574,1767253416281,-500.0,9.856e-05,2]
[400278575,1767253416306,-500.0,9.856e-05,2]
[400278576,1767253416330,-500.0,9.856e-05,2]
[400278577,1767253416353,-500.0,9.856e-05,2]
[400278578,1767253416376,-500.0,9.856e-05,2]
[400278579,1767253416399,-500.0,9.856e-05,2]
[400278580,1767253416424,-500.0,9.856e-05,2]
[400278581,1767253416448,-500.0,9.856e-05,2]
[400278582,1767253416471,-500.0,9.856e-05,2]
[400278583,1767253416495,-500.0,9.856e-05,2]
[400278584,1767253416518,-22.23113505,9.856e-05,2]
[400278586,1767253460174,-477.76886495,9.856e-05,2]
[400278587,1767253460196,-500.0,9.856e-05,2]
[400278588,1767253460219,-500.0,9.856e-05,2]
[400278589,1767253460239,-500.0,9.856e-05,2]
[400278590,1767253460261,-500.0,9.856e-05,2]
[400278591,1767253460283,-500.0,9.856e-05,2]
[400278592,1767253460304,-615.98458086,9.856e-05,2]
[400278593,1767253460326,-500.0,9.856e-05,2]
[400278594,1767253460347,-500.0,9.856e-05,2]
[400278595,1767253460368,-500.0,9.856e-05,2]
[400278596,1767253460391,-500.0,9.856e-05,2]
[400278597,1767253460414,-500.0,9.856e-05,2]
[400278598,1767253460437,-500.0,9.856e-05,2]
[400278599,1767253460458,-500.0,9.856e-05,2]
[400278600,1767253460480,-500.0,9.856e-05,2]
[400278601,1767253460500,-400.4819955,9.856e-05,2]
[400278602,1767253460522,-500.0,9.856e-05,2]
[400278603,1767253460543,-500.0,9.856e-05,2]
[400278604,1767253460564,-500.0,9.856e-05,2]
[400278605,1767253460584,-500.0,9.856e-05,2]
[400278606,1767253460606,-427.93286921,9.856e-05,2]
[400278607,1767253460627,-500.0,9.856e-05,2]
[400278608,1767253460648,-500.0,9.856e-05,2]
[400278609,1767253460671,-500.0,9.856e-05,2]
[400278610,1767253460692,-500.0,9.856e-05,2]
[400278611,1767253460715,-500.0,9.856e-05,2]
[400278612,1767253460737,-500.0,9.856e-05,2]
[400278613,1767253460757,-500.0,9.856e-05,2]
[400278614,1767253460780,-500.0,9.856e-05,2]
[400278615,1767253460802,-500.0,9.856e-05,2]
[400278616,1767253460824,-500.0,9.856e-05,2]
[400278617,1767253460846,-349.99999999,9.856e-05,2]
[400278618,1767253460868,-500.0,9.856e-05,2]
[400278619,1767253460890,-500.0,9.856e-05,2]
[400278620,1767253460911,-500.0,9.856e-05,2]
[400278621,1767253460931,-500.0,9.856e-05,2]
[400278622,1767253460952,-500.0,9.856e-05,2]
[400278623,1767253460974,-500.0,9.856e-05,2]
[400278624,1767253460995,-500.0,9.856e-05,2]
[400278625,1767253461021,-500.0,9.856e-05,2]
[400278626,1767253461041,-500.0,9.856e-05,2]
[400278627,1767253461063,-500.0,9.856e-05,2]
[400278628,1767253461085,-500.0,9.856e-05,2]
[400278629,1767253461107,-500.0,9.856e-05,2]
[400278630,1767253461128,-500.0,9.856e-05,2]
[400278631,1767253461151,-500.0,9.856e-05,2]
[400278632,1767253461173,-500.0,9.856e-05,2]
[400278633,1767253461195,-500.0,9.856e-05,2]
[400278634,1767253461219,-506.22549626,9.856e-05,2]
[400278635,1767253461352,-500.0,9.856e-05,2]
[400278636,1767253461375,-500.0,9.856e-05,2]
[400278637,1767253461399,-500.0,9.856e-05,2]
[400278638,1767253461421,-500.0,9.856e-05,2]
[400278639,1767253461444,-500.0,9.856e-05,2]
[400278640,1767253461467,-500.0,9.856e-05,2]
[400278641,1767253461489,-500.0,9.856e-05,2]
[400278642,1767253461511,-500.0,9.856e-05,2]
[400278643,1767253461533,-500.0,9.856e-05,2]
[400278644,1767253461555,-500.0,9.856e-05,2]
[400278645,1767253461578,-500.0,9.856e-05,2]
[400278646,1767253461600,-500.0,9.856e-05,2]
[400278647,1767253461624,-500.0,9.856e-05,2]
[400278648,1767253461645,-500.0,9.856e-05,2]
[400278649,1767253461672,-500.0,9.856e-05,2]
[400278650,1767253461694,-500.0,9.856e-05,2]
[400278651,1767253461716,-200.0,9.856e-05,2]
[400278652,1767253461738,-500.0,9.856e-05,2]
[400278653,1767253461760,-450.0,9.856e-05,2]
[400278654,1767253461782,-500.0,9.856e-05,2]
[400278655,1767253461804,-500.0,9.856e-05,2]
[400278656,1767253461826,-500.0,9.856e-05,2]
[400278657,1767253461847,-500.0,9.856e-05,2]
[400278658,1767253461869,-500.0,9.856e-05,2]
[400278659,1767253461891,-500.0,9.856e-05,2]
[400278660,1767253461912,-500.0,9.856e-05,2]
[400278661,1767253461933,-500.0,9.856e-05,2]
[400278662,1767253461959,-12571.60619323,9.857e-05,2]
[400278664,1767253540898,-242.0,9.856e-05,2]
[400278665,1767253540928,-29758.0,9.857e-05,2]
[400278673,1767253752135,-300.0,9.755e-05,2]
[400278674,1767253752161,-183.4515959,9.756e-05,2]
[400278709,1767253832319,-2030.12616884,9.756e-05,2]
[400278710,1767253832330,-32561.11022145,9.756e-05,2]
[400278718,1767253832394,-224.10574979,9.755e-05,2]
[400278720,1767253832403,-160.97958858,9.755e-05,2]
[400278722,1767253832414,-339.02041142,9.755e-05,2]
[400278724,1767253832423,-461.50788195,9.756e-05,2]
[400278728,1767253832446,-332.93679327,9.756e-05,2]
[400278773,1767253838354,-500.0,9.755e-05,2]
[400278775,1767253838363,-500.0,9.755e-05,2]
[400278777,1767253838373,-500.0,9.755e-05,2]
[400278778,1767253838382,-31.45639223,9.755e-05,2]
[400278779,1767253838441,-448.56002549,9.755e-05,2]
[400278780,1767253838451,-500.0,9.755e-05,2]
[400278781,1767253838461,-500.0,9.755e-05,2]
[400278782,1767253838471,-500.0,9.755e-05,2]
[400278783,1767253838480,-964430.86733859,9.756e-05,2]
[400278784,1767253838489,-557.0,9.756e-05,2]
[400278785,1767253838499,-215.6905499,9.856e-05,2]
[400278786,1767253838508,-150.0,9.906e-05,2]
[400278787,1767253838518,-212.87,0.0001,2]
[400278788,1767253838527,-212.87,0.000102,2]
[400278789,1767253838537,-212.87,0.000104,2]
[400278790,1767253838546,-212.87,0.000106,2]
[400278791,1767253838555,-212.87,0.000108,2]
[400278792,1767253838564,-500.0,0.00010959,2]
[400278793,1767253838574,-454.2252173,0.00010959,2]
[400278794,1767253838583,-212.87,0.00011,2]
[400278795,1767253838592,-177.0,0.00011906,2]
[400278796,1767253838602,-270.58008654,0.00012891,2]
[400278797,1767253838611,-684.7229129,0.00012978,2]
[400278798,1767253838621,-500.0,0.00013273,2]
[400278799,1767253838631,-318.28301363,0.00013273,2]
[400278800,1767253838642,-500.24232759,0.00013273,2]
[400278801,1767253838657,-636.14960935,0.00013273,2]
[400278802,1767253838668,-500.0,0.00013273,2]
[400278803,1767253838678,-500.0,0.00013273,2]
[400278804,1767253838687,-501.05066348,0.00013273,2]
[400278805,1767253838696,-236.76731322,0.00013273,2]
[400278806,1767253838706,-646.41067547,0.00013273,2]
[400278807,1767253838715,-386.16342293,0.00013273,2]
[400278808,1767253838725,-500.0,0.00013273,2]
[400278809,1767253838734,-500.0,0.00013273,2]
[400278810,1767253838743,-500.0,0.00013273,2]
[400278811,1767253838752,-638.64633295,0.00013273,2]
[400278812,1767253838761,-500.0,0.00013273,2]
[400278813,1767253838770,-500.17111181,0.00013273,2]
[400278814,1767253838779,-500.0,0.00013273,2]
[400278815,1767253838788,-418.41125218,0.00013273,2]
[400278816,1767253838798,-450.26227438,0.00013273,2]
[400278817,1767253838807,-540.69279956,0.00013273,2]
[400278818,1767253838816,-500.18467104,0.00013273,2]
[400278819,1767253838826,-278.08591794,0.00013273,2]
[400278820,1767253838835,-500.0,0.00013273,2]
[400278821,1767253838844,-581.36035181,0.00013273,2]
[400278822,1767253838853,-300.0,0.00013673,2]
[400278823,1767253838863,-500.0,0.00013698,2]
[400278824,1767253838872,-958.412712,0.00013699,2]
[400278825,1767253838881,-500.0,0.00013699,2]
[400278826,1767253838891,-501.11645787,0.00013699,2]
[400278827,1767253838899,-501.26577405,0.00013699,2]
[400278828,1767253838908,-502.25099838,0.00013699,2]
[400278829,1767253838918,-500.0,0.00013699,2]
[400278830,1767253838927,-500.0,0.00013699,2]
[400278831,1767253838937,-501.13153671,0.00013699,2]
[400278832,1767253838946,-501.63702454,0.00013699,2]
[400278833,1767253838955,-306.31234437,0.00013699,2]
[400278834,1767253838964,-500.0,0.00013699,2]
[400278835,1767253838973,-500.0,0.00013699,2]
[400278836,1767253838983,-500.0,0.00013699,2]
[400278837,1767253838993,-501.09241729,0.00013699,2]
[400278838,1767253839002,-558.35111265,0.00013821,2]
[400278839,1767253839012,-337.58218336,0.00013821,2]
[400278840,1767253839021,-500.0,0.00013821,2]
[400278841,1767253839030,-654.18409107,0.00013821,2]
[400278842,1767253839040,-210.87040005,0.00013821,2]
[400278843,1767253839049,-542.24446851,0.00013821,2]
[400278844,1767253839059,-204.0,0.00013906,2]
[400278845,1767253839068,-307.63591124,0.00014247,2]
[400278846,1767253839078,-175.0,0.000154,2]
[400278847,1767253839087,-231.0,0.00015906,2]
[400278848,1767253839096,-212.8333672,0.00016872,2]
[400278849,1767253839106,-1526.6589136,0.00017423,2]
[400278850,1767253839115,-1041.67,0.00017806,2]
[400278851,1767253839124,-194.36,0.00017806,2]
[400278852,1767253839133,-194.36,0.00017806,2]
[400278853,1767253839143,-194.36,0.00017806,2]
[400278854,1767253839152,-194.36,0.00017806,2]
[400278855,1767253839162,-194.36,0.00017806,2]
[400278856,1767253839172,-194.36,0.00017806,2]
[400278857,1767253839181,-194.31,0.00017806,2]
[400278858,1767253839191,-1041.66666667,0.00017886,2]
[400278859,1767253839200,-258.0,0.00017906,2]
[400278860,1767253839209,-285.0,0.00019906,2]
[400278861,1767253839219,-958.412712,0.00020187,2]
[400278862,1767253839228,-2323.09,0.000204,2]
[400278863,1767253839238,-160.0,0.000204,2]
[400278864,1767253839247,-250.0,0.00021712,2]
[400278865,1767253839256,-250.0,0.00021712,2]
[400278866,1767253839265,-250.0,0.00021712,2]
[400278867,1767253839278,-250.0,0.00021712,2]
[400278868,1767253839287,-250.0,0.00021712,2]
[400278869,1767253839297,-250.0,0.00021712,2]
[400278870,1767253839306,-250.0,0.00021712,2]
[400278871,1767253839315,-250.0,0.00021712,2]
[400278872,1767253839326,-250.0,0.00021712,2]